Cogmind - Beta 14 @@@ ROGUE MODE // 2024.10.27 @ 22:49:58 Player: morimori Result: Destroyed by G-47 Trooper with Particle Gun Performance ------------- Evolutions (0) 0 Regions Visited (2) 400 Robots Destroyed (34) 170 Value Destroyed (574) 574 Prototype IDs (0) 0 Alien Tech Used (0) 0 Bonus (0) 0 TOTAL SCORE: 1144 Bonus ------- None Cogmind --------- Core Integrity 0/250 Matter 280/300 Energy 95/125 System Corruption 0% Temperature Cool (9) Movement Rolling (105) Ox1 Location -10/Mines Parts ------- > --- POWER (1) -------- Light Ion Engine > --- PROPULSION (2) --- Wheel Compact Wheel > --- UTILITY (2) ------ Improved Heat Sink High-capacity Storage Unit > --- WEAPON (2) ------- Medium Laser Small Laser > --- INVENTORY (20) --- Light Ion Engine Light Nuclear Core Wheel Wheel Hover Unit Hover Unit Hover Unit Hover Unit Hover Unit Hover Unit Hover Unit Small Storage Unit Sensor Array Improved Terrain Scanner Seismic Detector Hacking Suite Authchip [Power] Authchip [Weapon] Assault Rifle Grenade Launcher Peak State ------------ > --- POWER ------------ Light Ion Engine > --- PROPULSION ------- Wheel Wheel > --- UTILITY ---------- High-capacity Storage Unit Weight Redist. System > --- WEAPON ----------- Medium Laser Grenade Launcher > --- INVENTORY -------- Light Ion Engine Light Nuclear Core Wheel Wheel Hover Unit Hover Unit Hover Unit Hover Unit Hover Unit Hover Unit Hover Unit Improved Heat Sink Small Storage Unit Structural Scanner Sensor Array Improved Terrain Scanner Hacking Suite Authchip [Power] Small Laser Assault Rifle [Rating: 11] Favorites ----------- Power Light Ion Engine Engine Light Ion Engine Propulsion Wheel Leg Aluminum Leg Wheel Wheel Utility High-capacity Storage Unit Device Seismic Detector Storage High-capacity Storage Unit Weapon Medium Laser Energy Gun Medium Laser Ballistic Gun Assault Rifle Launcher Grenade Launcher Build | -11 -10 -10 ------- Run | Yrd Mat Min Slots Evolved . | . . . Power . | . . . Propulsion . | . . . Utility . | . . . Weapon . | . . . Parts Attached 29 | 7 21 1 Power 4 | 1 3 . Engine 4 | 1 3 . Core . | . . . Reactor . | . . . Propulsion 9 | 2 7 . Treads . | . . . Leg 2 | . 2 . Wheel 7 | 2 5 . Hover . | . . . Flight . | . . . Utility 7 | 2 4 1 Device 5 | 1 3 1 Storage 2 | 1 1 . Processor . | . . . Hackware . | . . . Protection . | . . . Artifact . | . . . Weapon 9 | 2 7 . Energy Gun 5 | 1 4 . Energy Cannon . | . . . Ballistic Gun 2 | 1 1 . Ballistic Cannon . | . . . Launcher 2 | . 2 . Special Weapon . | . . . Impact Weapon . | . . . Slashing Weapon . | . . . Piercing Weapon . | . . . Special Melee Weapon . | . . . Unidentified Prototypes . | . . . Parts Lost 9 | . 9 . Power 2 | . 2 . Propulsion 4 | . 4 . Utility 1 | . 1 . Weapon 2 | . 2 . Highest Loss Streak 6 | . 6 . To Critical Strikes . | . . . Average Slot Usage (%) 96 | . 96 100 Engine 13 | . 13 14 Leg 1 | . 1 . Wheel 25 | . 25 28 Device 13 | . 13 14 Storage 14 | . 14 14 Energy Gun 23 | . 23 28 Ballistic Gun 3 | . 3 . Peak Build Rating 11 | 8 11 10 Average Rating 8 | 5 8 10 On Entrance 5 | . 7 10 Naked Turns . | . . . Heaviest Build 50 | 13 50 47 Greatest Support 26 | 26 26 26 Greatest Overweight (x) 16 | . 16 1 Average Overweight (x) 1 | . 1 1 Largest Inventory Capacity 20 | 8 20 20 Average Capacity 17 | 7 18 20 Most Carried 20 | 8 20 20 Average Carried 14 | 4 14 20 Final Capacity 20 | 8 20 20 Final Carried 20 | 6 20 20 Class Distribution -------------------- 63% | Scavenger-Mutant 36% | Mutant Dominant Class ---------------- Scavenger-Mutant | -10/Materials Scavenger-Mutant | -10/Mines Resources | -11 -10 -10 ----------- Run | Yrd Mat Min Matter Collected 584 | 288 296 . Remotely . | . . . Salvage Created 1022 | 125 897 . Parts 64 | 10 54 . Haulers Intercepted 2 | . 2 . Recyclers Shooed 3 | . 3 . Parts Field Recycled . | . . . Retrieved Matter . | . . . Parts Self-Destructed . | . . . Prevented . | . . . Kills | -11 -10 -10 ------- Run | Yrd Mat Min Combat Hostiles Destroyed 16 | . 16 . Guns 11 | . 11 . AOE 5 | . 5 . Classes Destroyed 9 | 2 7 . Worker 1 | . 1 . Builder 2 | . 2 . Tunneler 5 | 3 2 . Hauler 2 | . 2 . Recycler 3 | 1 2 . Operator 2 | . 2 . Watcher 3 | . 3 . Swarmer 6 | . 6 . Grunt 10 | . 10 . Best Kill Streak 4 | 4 4 . Combat Bots Only 3 | . 3 . Max Kills in Single Turn 2 | 1 2 . Gunslinging . | . . . Exploded 2 | . 2 . Melee . | . . . Uniques/NPCs Destroyed . | . . . Combat | -11 -10 -10 -------- Run | Yrd Mat Min Hostile Shots Fired 118 | . 117 1 Missed 31 | . 31 . Damage Taken 1020 | . 1006 14 Core 254 | . 240 14 Absorbed by Shields . | . . . Regen/Repaired (Parts) 48 | . 48 . Core Remaining (%) 100 | 100 . . Volleys Fired 99 | 6 93 . Largest 2 | 2 2 . Hottest 100 | 70 100 . Shots Fired 193 | 12 181 . Gun 189 | 12 177 . Cannon . | . . . Launcher 4 | . 4 . Special . | . . . Kinetic 38 | 6 32 . Thermal 151 | 6 145 . Explosive 4 | . 4 . Electromagnetic . | . . . Robot Hit Streak 7 | 6 7 . Robot Miss Streak 5 | 1 5 . Penetration Max . | . . . Secondary Targets 2 | . 2 . Max Gunslinging Chain 1 | . 1 . Shots Hit Robots 117 | 8 109 . Core Hits 51 | 5 46 . Critical Kills . | . . . Critical Parts Destroyed . | . . . Critical Strikes 11 | . 11 . Burn 11 | . 11 . Melee Attacks . | . . . Impact . | . . . Slashing . | . . . Piercing . | . . . Sneak Attacks . | . . . Combat Hostiles . | . . . Follow-up Attacks . | . . . Damage Inflicted 1794 | 111 1683 . Guns 1505 | 111 1394 . Cannons . | . . . Explosions 288 | . 288 . Melee . | . . . Ramming 1 | . 1 . Kinetic 335 | 49 286 . Thermal 1170 | 62 1108 . Explosive 288 | . 288 . Electromagnetic . | . . . Impact . | . . . Slashing . | . . . Piercing . | . . . Highest Corruption . | . . . Average Corruption . | . . . Corruption Purged . | . . . Corruption Blocked . | . . . Overload Shots . | . . . Overflow Damage 53 | . 53 . Projectiles . | . . . Explosions 53 | . 53 . Melee . | . . . Knockbacks . | . . . Impact . | . . . Kinetic . | . . . Secondary . | . . . Self-Inflicted Damage 17 | . 17 . Shots 2 | . 2 . Rammed 1 | . 1 . Targets Rammed 1 | . 1 . Kicked . | . . . Crushed . | . . . Highest Temperature 319 | 18 319 . Average Temperature 59 | 9 62 . Received Heat Transfer 504 | . 495 9 Siege Activations . | . . . Robots Corrupted . | . . . Combat Hostiles . | . . . Parts Fried . | . . . Impact Corruptions . | . . . Robots Melted 1 | . 1 . Combat Hostiles . | . . . Parts Melted 15 | . 15 . Heat Transferred 4280 | 185 4095 . Parts Sabotaged . | . . . Parts Stolen . | . . . Parts Stripped . | . . . Power Chain Reactions . | . . . Alert | -11 -10 -10 ------- Run | Yrd Mat Min Peak Influence 199 | 20 199 37 Initial 37 | . 13 37 Average 73 | 11 78 37 Maximum Alert Level . | . . . Low Security (%) 100 | 100 100 100 Level 1 . | . . . Level 2 . | . . . Level 3 . | . . . Level 4 . | . . . Level 5 . | . . . High Security . | . . . Max Security . | . . . Squads Dispatched 3 | . 3 . Investigation 1 | . 1 . Extermination . | . . . Reinforcement 2 | . 2 . Assault . | . . . Garrison . | . . . Intercept . | . . . Searches Triggered . | . . . Construction Impeded . | . . . Haulers Reinforced . | . . . Active Scanning Responses . | . . . Cargo Convoy Interrupts . | . . . Stealth | -11 -10 -10 --------- Run | Yrd Mat Min Distress Signals 4 | . 4 . Communications Jammed . | . . . Distress Signals . | . . . Times Spotted 30 | . 28 2 Peak Tracking Total 7 | . 7 2 Tactical Retreats . | . . . Traps | -11 -10 -10 ------- Run | Yrd Mat Min Traps Triggered . | . . . Indirectly . | . . . Trap Hack Attempts . | . . . Triggered . | . . . Disarmed . | . . . Reprogrammed . | . . . Reused . | . . . Traps Extracted . | . . . Installed . | . . . Triggered . | . . . Machines | -11 -10 -10 ---------- Run | Yrd Mat Min Machines Disabled . | . . . Max in Single Turn . | . . . Machines Repaired . | . . . Machines Dismantled . | . . . Machines Sabotaged . | . . . Overloaded Fab Kills . | . . . Hacking | -11 -10 -10 --------- Run | Yrd Mat Min Machines Accessed 9 | . 9 . Terminals 6 | . 6 . Fabricators . | . . . Repair Stations 1 | . 1 . Recycling Units 2 | . 2 . Scanalyzers . | . . . Garrison Access . | . . . Total Hacks 27 | . 27 . Successful 10 | . 10 . Failed 16 | . 16 . Catastrophic 5 | . 5 . Database Lockouts 1 | . 1 . Manual 23 | . 23 . Terminals 23 | . 23 . Fabricators . | . . . Repair Stations 2 | . 2 . Recycling Units 2 | . 2 . Scanalyzers . | . . . Garrison Access . | . . . Terminal Hacks 2 | . 2 . Part Schematic 1 | . 1 . Terminal Index 1 | . 1 . Fabricator Hacks . | . . . Repair Station Hacks 2 | . 2 . Scan Component 1 | . 1 . Repair 1 | . 1 . Recycling Unit Hacks 2 | . 2 . Retrieve Components 2 | . 2 . Scanalyzer . | . . . Garrison Access Hacks . | . . . Unauthorized Hacks 4 | . 4 . Terminals 4 | . 4 . Assimilate 1 | . 1 . Botnet 2 | . 2 . Operators 1 | . 1 . Fabricators . | . . . Repair Stations . | . . . Recycling Units . | . . . Scanalyzers . | . . . Garrison Access . | . . . Data Cores Recovered . | . . . Used . | . . . Hacking Detections 7 | . 7 . Full Trace Events 2 | . 2 . Feedback Events . | . . . Feedback Blocked . | . . . Robot Schematics Acquired . | . . . Robots Built . | . . . Authchips . | . . . Time . | . . . Total Robot Build Rating . | . . . Part Schematics Acquired 1 | . 1 . Parts Built . | . . . Authchips . | . . . Time . | . . . Total Part Build Rating . | . . . Parts Repaired 1 | . 1 . Time 26 | . 26 . Parts Recycled . | . . . Recycled Matter . | . . . Retrieved Matter . | . . . Retrieved Components 12 | . 12 . Parts Scanalyzed . | . . . Part Schematics Acquired . | . . . Parts Damaged . | . . . Bothacking | -11 -10 -10 ------------ Run | Yrd Mat Min Used RIF Installer . | . . . Robots Hacked . | . . . Non-combat . | . . . Combat . | . . . Robot Hacks Applied . | . . . Relay Couplers Released . | . . . Fabnet Peak Effective % . | . . . Robots Rewired . | . . . Allies Hacked . | . . . Hacks Repelled . | . . . Allies | -11 -10 -10 -------- Run | Yrd Mat Min Total Allies . | . . . Largest Group . | . . . Highest-Rated Group . | . . . Highest-Rated Ally . | . . . Total Orders . | . . . Ally Attacks . | . . . Total Damage . | . . . Kills . | . . . Allies Corrupted . | . . . Allies Melted . | . . . Intel | -11 -10 -10 ------- Run | Yrd Mat Min Robot Analysis Total . | . . . Derelict Logs Recovered . | . . . Drone Launches . | . . . Drone Recoveries . | . . . Exploration | -11 -10 -10 ------------- Run | Yrd Mat Min Turns Passed 1702 | 120 1578 4 Spaces Moved 1111 | 83 1025 3 Core 2 | 1 1 . Treads . | . . . Legs 15 | . 15 . Wheels 1094 | 82 1009 3 Hover . | . . . Flight . | . . . Fastest Speed 50 | 50 90 105 Average Speed 103 | 88 104 105 Slowest Speed 850 | 90 850 105 Overloaded Moves . | . . . Propulsion Burnouts . | . . . Robots Hopped . | . . . Cave-ins Triggered . | . . . Exploration Rate (%) 35 | 6 97 3 Regions Visited 2 Branch Regions 1 Pre-discovered Areas . | . . . Known Exits Taken . | . . . Unknown Exits Taken 2 | 1 1 . Scrap Searched . | . . . Spaces Dug . | . . . Terrain Destroyed 21 | . 21 . Melee . | . . . Projectile . | . . . AOE 21 | . 21 . Terrain Rammed . | . . . Walls Destroyed . | . . . Machines Disabled . | . . . Actions | -11 -10 -10 --------- Run | Yrd Mat Min Total 1478 | 115 1359 4 Wait 184 | 10 174 . Move 1109 | 82 1024 3 Hop . | . . . Pick Up 36 | 8 28 . Fast Attach 16 | 7 9 . Attach 5 | . 5 . Detach 2 | . 2 . Swap 8 | . 7 1 Drop 18 | 2 16 . Fire 99 | 6 93 . Melee . | . . . Ram 1 | . 1 . Kick . | . . . Crush . | . . . Escape Stasis . | . . . Rewire . | . . . Trap . | . . . Miscellaneous . | . . . Route ------- -11/Scrapyard -10/Materials (discovered 4 exits: [*Mat x3] / [*Min]) -10/Mines History --------- Turn | Location | Event 8 | -11/Scrapyard | Discovered new exit (range 15) 121 | -11/Scrapyard | Entered Materials 312 | -10/Materials | Build established: Mutant 356 | -10/Materials | Discovered new exit (range 5) 501 | -10/Materials | Core integrity fell below 50% 539 | -10/Materials | Lost 6 parts (2p3n1w) 595 | -10/Materials | Core integrity fell below 20% 939 | -10/Materials | Build established: Scavenger-Mutant 1187 | -10/Materials | Repaired Med. Laser 1229 | -10/Materials | Discovered new exit (range 10) 1312 | -10/Materials | Central database locked down 1318 | -10/Materials | Discovered new exit (range 5) 1551 | -10/Materials | Discovered new exit (range 12) 1699 | -10/Materials | Entered Mines 1703 | -10/Mines | Destroyed by G-47 Trooper with Particle Gun Last Messages --------------- 01536_ K-01 Serf cleans the Atomic Centrifuge. 01551_ EXIT=FOUND 01590_ K-01 Serf cleans the Atomic Centrifuge. 01620_ K-01 Serf cleans the Terminal. 01640_ Connecting with Recycling Unit... >>Retrieve(Components) Retrieving 10 components... Lgt. Ion Engine Heat Sink Hover Unit Hover Unit Seismic Detector Seismic Detector Datajack Lgt. Ion Engine Seismic Detector Aluminum Leg LOCATION=UNKNOWN GOAL=ESCAPE Something is scanning the area. Map ----- +----------------------------------------------------+ | | | | | | | | | | | | | | | | | | | | | | | | | | | | | | | ?????????????????????????????????????????????????? | | ?????????????????????????????????????????????????? | | ?????????????????????????????????????????????????? | | ?????????????????????????????????????????????????? | | ?????????????????????????????????????????????????? | | ?????????????????????????????????????????????????? | | ???????????????#########?????????????????????????? | | ???????????????# #?????????????????????????? | | ???????????????# #?????????????????????????? | | ???????????????# """ #####?????????????????????? | | ???????????????# """ g @ #?????????????????????? | | ???????????????# """ ### #?????????????????????? | | ?????????????? #?? #?????????????????????? | | ??????????????##########???#?????????????????????? | | ?????????????????????????????????????????????????? | | ?????????????????????????????????????????????????? | | ?????????????????????????????????????????????????? | | ?????????????????????????????????????????????????? | | ?????????????????????????????????????????????????? | | ?????????????????????????????????????????????????? | | ?????????????????????????????????????????????????? | | ?????????????????????????????????????????????????? | | ?????????????????????????????????????????????????? | | ?????????????????????????????????????????????????? | | ?????????????????????????????????????????????????? | | ?????????????????????????????????????????????????? | | ?????????????????????????????????????????????????? | | ?????????????????????????????????????????????????? | | ?????????????????????????????????????????????????? | | ?????????????????????????????????????????????????? | | ?????????????????????????????????????????????????? | | ?????????????????????????????????????????????????? | | ?????????????????????????????????????????????????? | | ?????????????????????????????????????????????????? | | ?????????????????????????????????????????????????? | +----------------------------------------------------+ Best States ------------- Heat Dissipation 35 Energy Generation 10 Energy Capacity 250 Matter Stores 300 Matter Capacity 300 Sight Range 16 Terrain Scan Density 10 Additional Mass Support 6 Evasion (%) 44 Authchip Count 2 Item Schematics ----------------- Hcp. Storage Unit | -10/Materials | Hacked Robot Schematics ------------------ None Fabricated ------------ Nothing Alien Tech Used ----------------- None Achievements -------------- None Challenges ------------ None Game ------ Seed VisualBottomlessMultirail Manual? 0 Play Time 00:13:24 Cumulative 276.7 hours Start 2024.10.27 @ 22:35:17 End 2024.10.27 @ 22:49:58 Sessions 1 Manual Loads 0 Difficulty Rogue Special Mode None Game No. 144 Rogue 144 Adventurer 0 Explorer 0 Win Type - Total 4 Types 4/0/0/0/0/0/0/0/0 Lore% 44 Gallery% 66 Achievement% 58 Wizard Run 0 Options --------- Layout 0 ASCII 0 Keyboard 1 Movement Vi Keybinds 0 Fullscreen 2 Font 18/SmallcapsGlow Map View 76x50 Zoom Use 0% Tactical HUD 1 Map Filters NONE Filters NONE Steam 1 RUN: 42ecdebf-fe82-42a5-8c87-172e7ed8c027